[Event "Late-Titled-Tuesday-Blitz-April-16-2024"]
[Site "Chess.com"]
[Date "2024.04.16"]
[Round "4"]
[White "duone"]
[Black "Szachulec75"]
[Result "0-1"]
[WhiteElo "2313"]
[BlackElo "2108"]
[TimeControl "180+1"]
[EndTime "14:35:15 PDT"]
[Termination "Szachulec75 won by checkmate"]

1. e4 {[%clk 0:03:00.9]} 1... d6 {[%clk 0:02:54.1]} 2. d4 {[%clk 0:02:59.8]}
2... Nf6 {[%clk 0:02:53.1]} 3. Nc3 {[%clk 0:02:59.7]} 3... c6 {[%clk 0:02:53.2]}
4. Be3 {[%clk 0:02:59.5]} 4... Nbd7 {[%clk 0:02:51.6]} 5. Bc4 {[%clk 0:02:58.4]}
5... e5 {[%clk 0:02:50.8]} 6. Nf3 {[%clk 0:02:57.2]} 6... h6 {[%clk 0:02:49.2]}
7. O-O {[%clk 0:02:56.4]} 7... b5 {[%clk 0:02:48.5]} 8. Bb3 {[%clk 0:02:55.7]}
8... Be7 {[%clk 0:02:49.1]} 9. Qd3 {[%clk 0:02:48.4]} 9... b4 {[%clk 0:02:47.7]}
10. Ne2 {[%clk 0:02:47.8]} 10... a5 {[%clk 0:02:47.8]} 11. a4 {[%clk 0:02:46.9]}
11... O-O {[%clk 0:02:37.8]} 12. Bc4 {[%clk 0:02:45.5]} 12... Qc7 {[%clk
0:02:33.6]} 13. dxe5 {[%clk 0:02:38.5]} 13... dxe5 {[%clk 0:02:32.4]} 14. Ng3
{[%clk 0:02:38.2]} 14... Nb6 {[%clk 0:02:26.8]} 15. Bxb6 {[%clk 0:02:34.3]}
15... Qxb6 {[%clk 0:02:27.2]} 16. Rad1 {[%clk 0:02:34.7]} 16... Qc7 {[%clk
0:02:14.5]} 17. Nh4 {[%clk 0:02:31.9]} 17... Ne8 {[%clk 0:02:07.6]} 18. Nhf5
{[%clk 0:02:30.2]} 18... Bxf5 {[%clk 0:02:07.8]} 19. Nxf5 {[%clk 0:02:30.3]}
19... Bf6 {[%clk 0:01:51.1]} 20. Qd7 {[%clk 0:02:23.9]} 20... Qb6 {[%clk
0:01:36.7]} 21. Qd3 {[%clk 0:02:03.1]} 21... Kh7 {[%clk 0:01:29.2]} 22. Qh3
{[%clk 0:01:56.4]} 22... Rd8 {[%clk 0:01:18.8]} 23. Rd3 {[%clk 0:01:53.4]} 23...
Rxd3 {[%clk 0:01:17]} 24. c3 {[%clk 0:01:53.8]} 24... Rxh3 {[%clk 0:01:15.4]}
25. gxh3 {[%clk 0:01:53.5]} 25... bxc3 {[%clk 0:01:13.1]} 26. bxc3 {[%clk
0:01:52.9]} 26... Qc5 {[%clk 0:01:13.6]} 27. Ne3 {[%clk 0:01:51.8]} 27... Nd6
{[%clk 0:01:12.3]} 28. Be2 {[%clk 0:01:49]} 28... Nxe4 {[%clk 0:01:11.5]} 29.
Rc1 {[%clk 0:01:46.8]} 29... Bg5 {[%clk 0:01:04.8]} 30. Bd3 {[%clk 0:01:46]}
30... f5 {[%clk 0:01:04.2]} 31. Nxf5 {[%clk 0:01:46]} 31... Bxc1 {[%clk
0:01:03.5]} 32. Bxe4 {[%clk 0:01:45.2]} 32... Rxf5 {[%clk 0:01:03]} 33. Bxf5+
{[%clk 0:01:45.4]} 33... g6 {[%clk 0:01:03.9]} 34. Be4 {[%clk 0:01:45.3]} 34...
Qxc3 {[%clk 0:01:04]} 35. Kg2 {[%clk 0:01:45.2]} 35... Bf4 {[%clk 0:01:01.5]}
36. Bf3 {[%clk 0:01:43.9]} 36... c5 {[%clk 0:00:58.5]} 37. Be4 {[%clk 0:01:44]}
37... c4 {[%clk 0:00:59.4]} 38. Bf3 {[%clk 0:01:44.7]} 38... Qd4 {[%clk
0:00:59.3]} 39. Be4 {[%clk 0:01:45.6]} 39... Qxe4+ {[%clk 0:00:59]} 40. f3
{[%clk 0:01:46]} 40... Qe2+ {[%clk 0:00:58.5]} 41. Kg1 {[%clk 0:01:46.9]} 41...
Be3+ {[%clk 0:00:55.8]} 42. Kh1 {[%clk 0:01:45.5]} 42... Qf1# {[%clk 0:00:56.4]}
0-1

[Event "Late-Titled-Tuesday-Blitz-April-16-2024"]
[Site "Chess.com"]
[Date "2024.04.16"]
[Round "4"]
[White "HipsterChess22"]
[Black "SmirnovTimofey2000"]
[Result "1-0"]
[WhiteElo "2245"]
[BlackElo "1982"]
[TimeControl "180+1"]
[EndTime "14:35:18 PDT"]
[Termination "HipsterChess22 won by resignation"]

1. d4 {[%clk 0:02:59.4]} 1... d5 {[%clk 0:02:59.8]} 2. Nc3 {[%clk 0:02:59]} 2...
Nf6 {[%clk 0:02:58.4]} 3. Bf4 {[%clk 0:02:58.5]} 3... c5 {[%clk 0:02:58.7]} 4.
e3 {[%clk 0:02:58.2]} 4... cxd4 {[%clk 0:02:58]} 5. exd4 {[%clk 0:02:58.4]} 5...
a6 {[%clk 0:02:55.7]} 6. Nf3 {[%clk 0:02:58]} 6... e6 {[%clk 0:02:55.3]} 7. Ne5
{[%clk 0:02:56.5]} 7... Be7 {[%clk 0:02:47.8]} 8. Bd3 {[%clk 0:02:55.8]} 8...
O-O {[%clk 0:02:46.7]} 9. O-O {[%clk 0:02:51.6]} 9... Nc6 {[%clk 0:02:45.9]} 10.
Ne2 {[%clk 0:02:49.3]} 10... h6 {[%clk 0:02:38.9]} 11. c3 {[%clk 0:02:45.8]}
11... Nxe5 {[%clk 0:02:35.6]} 12. Bxe5 {[%clk 0:02:43.8]} 12... Bd6 {[%clk
0:02:33]} 13. f4 {[%clk 0:02:30.6]} 13... Qc7 {[%clk 0:02:17]} 14. Ng3 {[%clk
0:02:28.4]} 14... Qd8 {[%clk 0:02:11.1]} 15. Bc2 {[%clk 0:02:24.9]} 15... b5
{[%clk 0:02:08.3]} 16. Qd3 {[%clk 0:02:21.5]} 16... g6 {[%clk 0:01:58.9]} 17. a3
{[%clk 0:02:18.6]} 17... Qe7 {[%clk 0:01:49.7]} 18. Rae1 {[%clk 0:02:16.7]}
18... Nd7 {[%clk 0:01:48.8]} 19. Nh5 {[%clk 0:01:41.2]} 19... Bxe5 {[%clk
0:01:38]} 20. fxe5 {[%clk 0:01:40.1]} 20... Bb7 {[%clk 0:01:16]} 21. Rf3 {[%clk
0:01:37.3]} 21... f5 {[%clk 0:01:02.5]} 22. exf6 {[%clk 0:01:32.2]} 22... Rxf6
{[%clk 0:00:44.8]} 23. Nxf6+ {[%clk 0:01:28.3]} 23... Nxf6 {[%clk 0:00:45]} 24.
Qxg6+ {[%clk 0:01:27.9]} 1-0

[Event "Late-Titled-Tuesday-Blitz-April-16-2024"]
[Site "Chess.com"]
[Date "2024.04.16"]
[Round "4"]
[White "carloseduar100"]
[Black "SilverCityIndigo"]
[Result "0-1"]
[WhiteElo "2237"]
[BlackElo "2423"]
[TimeControl "180+1"]
[EndTime "14:35:22 PDT"]
[Termination "SilverCityIndigo won by resignation"]

1. d4 {[%clk 0:02:51.7]} 1... d5 {[%clk 0:03:00.9]} 2. c3 {[%clk 0:02:50.5]}
2... Bg4 {[%clk 0:02:57]} 3. Nf3 {[%clk 0:02:48.1]} 3... Bxf3 {[%clk 0:02:55.7]}
4. exf3 {[%clk 0:02:48.2]} 4... c6 {[%clk 0:02:54.4]} 5. Bd3 {[%clk 0:02:43.2]}
5... g6 {[%clk 0:02:53.4]} 6. O-O {[%clk 0:02:41.1]} 6... Bg7 {[%clk 0:02:53.1]}
7. Re1 {[%clk 0:02:40.6]} 7... Nh6 {[%clk 0:02:50.3]} 8. Nd2 {[%clk 0:02:38.7]}
8... O-O {[%clk 0:02:49.6]} 9. Nf1 {[%clk 0:02:38.9]} 9... f6 {[%clk 0:02:49.4]}
10. Qb3 {[%clk 0:02:35.2]} 10... Qc7 {[%clk 0:02:41.1]} 11. c4 {[%clk
0:02:35.4]} 11... dxc4 {[%clk 0:02:34.2]} 12. Bxc4+ {[%clk 0:02:34]} 12... Kh8
{[%clk 0:02:34.5]} 13. Bxh6 {[%clk 0:02:16.1]} 13... Bxh6 {[%clk 0:02:34.4]} 14.
Re6 {[%clk 0:02:16]} 14... b5 {[%clk 0:02:29.4]} 15. Bd3 {[%clk 0:02:12.9]}
15... Rd8 {[%clk 0:02:18]} 16. Rae1 {[%clk 0:02:11.6]} 16... Bf8 {[%clk
0:02:16]} 17. Qc3 {[%clk 0:01:54.5]} 17... Qf4 {[%clk 0:02:02.4]} 18. Be4 {[%clk
0:01:32.5]} 18... f5 {[%clk 0:01:38.2]} 19. Bxc6 {[%clk 0:00:56.8]} 19... Nxc6
{[%clk 0:01:38.3]} 20. Qxc6 {[%clk 0:00:56.7]} 20... Qxd4 {[%clk 0:01:33.4]} 21.
Qxb5 {[%clk 0:00:53.4]} 21... Rab8 {[%clk 0:01:32.6]} 22. Qa6 {[%clk 0:00:50.1]}
22... Rxb2 {[%clk 0:01:29.2]} 23. Qxa7 {[%clk 0:00:49.5]} 23... Qxa7 {[%clk
0:01:26.6]} 0-1

[Event "Late-Titled-Tuesday-Blitz-April-16-2024"]
[Site "Chess.com"]
[Date "2024.04.16"]
[Round "4"]
[White "masnyszachistaaa"]
[Black "Lukianoo"]
[Result "0-1"]
[WhiteElo "2568"]
[BlackElo "2828"]
[TimeControl "180+1"]
[EndTime "14:35:28 PDT"]
[Termination "Lukianoo won by resignation"]

1. c4 {[%clk 0:03:00.9]} 1... Nf6 {[%clk 0:02:56.4]} 2. Nc3 {[%clk 0:03:00.3]}
2... e6 {[%clk 0:02:56.1]} 3. e4 {[%clk 0:02:40.5]} 3... d5 {[%clk 0:02:56.3]}
4. e5 {[%clk 0:02:35.9]} 4... d4 {[%clk 0:02:56.6]} 5. exf6 {[%clk 0:02:35]}
5... dxc3 {[%clk 0:02:56.7]} 6. bxc3 {[%clk 0:02:35.8]} 6... Qxf6 {[%clk
0:02:55.2]} 7. d4 {[%clk 0:02:34.1]} 7... Nd7 {[%clk 0:02:54.8]} 8. Nf3 {[%clk
0:02:24.9]} 8... h6 {[%clk 0:02:55.2]} 9. Be2 {[%clk 0:02:18.9]} 9... b6 {[%clk
0:02:54.8]} 10. O-O {[%clk 0:02:17]} 10... Bd6 {[%clk 0:02:54.3]} 11. Nd2 {[%clk
0:02:07.7]} 11... Bb7 {[%clk 0:02:53.5]} 12. Bf3 {[%clk 0:02:06.1]} 12... Bxf3
{[%clk 0:02:53.5]} 13. Qxf3 {[%clk 0:02:05.9]} 13... Qxf3 {[%clk 0:02:53.7]} 14.
Nxf3 {[%clk 0:02:06.8]} 14... O-O {[%clk 0:02:40.5]} 15. a4 {[%clk 0:02:07]}
15... Nb8 {[%clk 0:02:36.8]} 16. Nd2 {[%clk 0:01:40.6]} 16... Nc6 {[%clk
0:02:35.5]} 17. Nb3 {[%clk 0:01:30.8]} 17... e5 {[%clk 0:02:25.8]} 18. Be3
{[%clk 0:00:54.9]} 18... f5 {[%clk 0:02:15]} 19. f3 {[%clk 0:00:30.9]} 19...
Rfe8 {[%clk 0:02:13.2]} 20. Bf2 {[%clk 0:00:19.4]} 20... exd4 {[%clk 0:02:08.6]}
21. cxd4 {[%clk 0:00:18.5]} 21... Re2 {[%clk 0:02:08.3]} 22. d5 {[%clk
0:00:18.5]} 22... Ne5 {[%clk 0:02:08.5]} 23. Nd4 {[%clk 0:00:17.6]} 23... Rxf2
{[%clk 0:01:59.7]} 24. Rxf2 {[%clk 0:00:12.4]} 24... Bc5 {[%clk 0:02:00]} 25.
Rd1 {[%clk 0:00:10.2]} 25... Nxc4 {[%clk 0:01:59.8]} 26. Kh1 {[%clk 0:00:09.3]}
26... Ne3 {[%clk 0:01:58.8]} 27. Rd3 {[%clk 0:00:09.2]} 27... Nxd5 {[%clk
0:01:58.6]} 28. Re2 {[%clk 0:00:08.3]} 28... Nf4 {[%clk 0:01:58.4]} 29. Red2
{[%clk 0:00:08.3]} 29... Nxd3 {[%clk 0:01:58.3]} 30. Rxd3 {[%clk 0:00:09.2]}
30... Rd8 {[%clk 0:01:58]} 0-1

[Event "Late-Titled-Tuesday-Blitz-April-16-2024"]
[Site "Chess.com"]
[Date "2024.04.16"]
[Round "4"]
[White "AlexeiShirov"]
[Black "SantoBlue"]
[Result "1-0"]
[WhiteElo "2816"]
[BlackElo "3009"]
[TimeControl "180+1"]
[EndTime "14:35:31 PDT"]
[Termination "AlexeiShirov won by resignation"]

1. e4 {[%clk 0:03:00.9]} 1... e5 {[%clk 0:03:00]} 2. Nf3 {[%clk 0:03:00.7]} 2...
Nc6 {[%clk 0:02:59]} 3. Bc4 {[%clk 0:02:59.4]} 3... Bc5 {[%clk 0:02:58.7]} 4. c3
{[%clk 0:02:58.3]} 4... Nf6 {[%clk 0:02:58.4]} 5. d4 {[%clk 0:02:58.3]} 5...
exd4 {[%clk 0:02:58.6]} 6. e5 {[%clk 0:02:58.4]} 6... d5 {[%clk 0:02:58.4]} 7.
Bb5 {[%clk 0:02:58.4]} 7... Ne4 {[%clk 0:02:59]} 8. cxd4 {[%clk 0:02:58.2]} 8...
Bb6 {[%clk 0:02:58.8]} 9. Be3 {[%clk 0:02:57.4]} 9... O-O {[%clk 0:02:59]} 10.
Nc3 {[%clk 0:02:57.3]} 10... Bg4 {[%clk 0:02:55.9]} 11. h3 {[%clk 0:02:54.3]}
11... Bh5 {[%clk 0:02:55.6]} 12. Qc2 {[%clk 0:02:53.3]} 12... Nxc3 {[%clk
0:02:51.6]} 13. Bxc6 {[%clk 0:02:44.7]} 13... bxc6 {[%clk 0:02:50.6]} 14. Qxc3
{[%clk 0:02:43.3]} 14... Bxf3 {[%clk 0:02:49.3]} 15. gxf3 {[%clk 0:02:41.7]}
15... f6 {[%clk 0:02:50.2]} 16. f4 {[%clk 0:02:19.6]} 16... fxe5 {[%clk
0:02:49.4]} 17. fxe5 {[%clk 0:02:19.2]} 17... Qh4 {[%clk 0:02:30]} 18. O-O-O
{[%clk 0:02:15]} 18... Kh8 {[%clk 0:02:20.1]} 19. Qxc6 {[%clk 0:02:11.8]} 19...
Qe4 {[%clk 0:02:19.2]} 20. Qc2 {[%clk 0:02:07.8]} 20... Qf3 {[%clk 0:02:18.6]}
21. Rhg1 {[%clk 0:01:56.5]} 21... a5 {[%clk 0:02:18.8]} 22. Rg3 {[%clk
0:01:55.3]} 22... Qf7 {[%clk 0:02:16.5]} 23. Rdg1 {[%clk 0:01:54.5]} 23... Rg8
{[%clk 0:02:17]} 24. f4 {[%clk 0:01:50.3]} 24... c5 {[%clk 0:02:13.9]} 25. dxc5
{[%clk 0:01:46.6]} 25... Rac8 {[%clk 0:02:14.4]} 26. Kb1 {[%clk 0:01:44.4]}
26... d4 {[%clk 0:02:10.6]} 27. Bxd4 {[%clk 0:01:42.7]} 27... Qxf4 {[%clk
0:02:11.4]} 28. Qc3 {[%clk 0:01:37.3]} 28... Rgd8 {[%clk 0:02:04]} 29. Rg4
{[%clk 0:01:21.1]} 29... Qf5+ {[%clk 0:02:03.9]} 30. Ka1 {[%clk 0:01:18.3]}
30... g6 {[%clk 0:01:08.2]} 31. e6+ {[%clk 0:01:12.7]} 31... Kg8 {[%clk
0:01:08.7]} 32. e7 {[%clk 0:01:11.6]} 32... Re8 {[%clk 0:01:06]} 33. Qb3+ {[%clk
0:01:10.7]} 33... Qf7 {[%clk 0:01:06.7]} 34. cxb6 {[%clk 0:01:06.4]} 1-0

[Event "Late-Titled-Tuesday-Blitz-April-16-2024"]
[Site "Chess.com"]
[Date "2024.04.16"]
[Round "4"]
[White "Cuchulin"]
[Black "gmcorrales"]
[Result "0-1"]
[WhiteElo "2220"]
[BlackElo "2929"]
[TimeControl "180+1"]
[EndTime "14:35:35 PDT"]
[Termination "gmcorrales won by checkmate"]

1. d4 {[%clk 0:02:37.1]} 1... Nf6 {[%clk 0:02:59.4]} 2. Bf4 {[%clk 0:02:37.4]}
2... e6 {[%clk 0:02:48.7]} 3. e3 {[%clk 0:02:36.7]} 3... c5 {[%clk 0:02:46.4]}
4. Nf3 {[%clk 0:02:36.3]} 4... cxd4 {[%clk 0:02:25.2]} 5. exd4 {[%clk
0:02:35.3]} 5... Nc6 {[%clk 0:02:24.5]} 6. Nc3 {[%clk 0:02:34.8]} 6... Qb6
{[%clk 0:02:01.1]} 7. Rb1 {[%clk 0:02:30.2]} 7... Bb4 {[%clk 0:02:00.3]} 8. Be2
{[%clk 0:02:28.7]} 8... Nd5 {[%clk 0:01:58.8]} 9. O-O {[%clk 0:02:26.8]} 9...
Bxc3 {[%clk 0:01:56.7]} 10. bxc3 {[%clk 0:02:25]} 10... Nxc3 {[%clk 0:01:57.6]}
11. Rxb6 {[%clk 0:02:23.4]} 11... Nxd1 {[%clk 0:01:57.7]} 12. Rxc6 {[%clk
0:02:22.4]} 12... bxc6 {[%clk 0:01:57]} 13. Rxd1 {[%clk 0:02:20.7]} 13... f6
{[%clk 0:01:54.8]} 14. Bd6 {[%clk 0:02:20]} 14... a5 {[%clk 0:01:54.6]} 15. c4
{[%clk 0:02:19.9]} 15... Ba6 {[%clk 0:01:54.1]} 16. Rb1 {[%clk 0:02:06.1]} 16...
Kf7 {[%clk 0:01:53.9]} 17. Bf1 {[%clk 0:02:03.9]} 17... Ra7 {[%clk 0:01:53.4]}
18. c5 {[%clk 0:02:03.4]} 18... Bxf1 {[%clk 0:01:52.2]} 19. Kxf1 {[%clk
0:02:04.3]} 19... a4 {[%clk 0:01:53]} 20. a3 {[%clk 0:02:02.8]} 20... Rha8
{[%clk 0:01:48.2]} 21. Nd2 {[%clk 0:02:02.6]} 21... Ra5 {[%clk 0:01:48]} 22. Nc4
{[%clk 0:01:55.8]} 22... Rb5 {[%clk 0:01:46.8]} 23. Rd1 {[%clk 0:01:46.5]} 23...
Rb3 {[%clk 0:01:44.3]} 24. Nb6 {[%clk 0:01:46.3]} 24... Ra7 {[%clk 0:01:41.8]}
25. Ra1 {[%clk 0:01:42.7]} 25... Ra5 {[%clk 0:01:33.9]} 26. g3 {[%clk
0:01:31.3]} 26... Ke8 {[%clk 0:01:28.8]} 27. Ke2 {[%clk 0:01:28.6]} 27... Rc3
{[%clk 0:01:27]} 28. Kd2 {[%clk 0:01:26.4]} 28... Rb3 {[%clk 0:01:26.3]} 29. Ke2
{[%clk 0:01:26.4]} 29... h5 {[%clk 0:01:23.2]} 30. h4 {[%clk 0:01:25.9]} 30...
Rb2+ {[%clk 0:01:09.2]} 31. Ke3 {[%clk 0:01:24.7]} 31... Rab5 {[%clk 0:01:08.8]}
32. Nxa4 {[%clk 0:01:22.4]} 32... R5b3+ {[%clk 0:01:06.4]} 33. Ke4 {[%clk
0:01:16.4]} 33... Re2+ {[%clk 0:01:04.7]} 34. Kf4 {[%clk 0:01:15.8]} 34... Rxf2+
{[%clk 0:01:04.4]} 35. Ke4 {[%clk 0:01:15.4]} 35... f5+ {[%clk 0:01:02.9]} 36.
Ke5 {[%clk 0:01:08.2]} 36... Re3# {[%clk 0:01:03.8]} 0-1

[Event "Late-Titled-Tuesday-Blitz-April-16-2024"]
[Site "Chess.com"]
[Date "2024.04.16"]
[Round "4"]
[White "ameetghasi100"]
[Black "biesiadnik"]
[Result "1-0"]
[WhiteElo "2786"]
[BlackElo "2546"]
[TimeControl "180+1"]
[EndTime "14:35:38 PDT"]
[Termination "ameetghasi100 won by resignation"]

1. c4 {[%clk 0:03:00.9]} 1... e6 {[%clk 0:02:57.8]} 2. Nf3 {[%clk 0:03:01.8]}
2... d5 {[%clk 0:02:58.1]} 3. e3 {[%clk 0:03:02.2]} 3... Nf6 {[%clk 0:02:57.5]}
4. b3 {[%clk 0:03:02]} 4... c5 {[%clk 0:02:55.5]} 5. Bb2 {[%clk 0:03:02.5]} 5...
Nc6 {[%clk 0:02:55.9]} 6. cxd5 {[%clk 0:03:02.4]} 6... exd5 {[%clk 0:02:55.6]}
7. Bb5 {[%clk 0:03:02]} 7... Bd6 {[%clk 0:02:49.4]} 8. O-O {[%clk 0:03:00.3]}
8... O-O {[%clk 0:02:48.5]} 9. h3 {[%clk 0:03:00.7]} 9... Bd7 {[%clk 0:02:34.7]}
10. Nc3 {[%clk 0:02:58.8]} 10... a6 {[%clk 0:02:33.7]} 11. Bxc6 {[%clk
0:02:58.3]} 11... Bxc6 {[%clk 0:02:33.7]} 12. d4 {[%clk 0:02:59.2]} 12... Re8
{[%clk 0:02:13.2]} 13. Rc1 {[%clk 0:02:57.4]} 13... Rc8 {[%clk 0:02:11.7]} 14.
Re1 {[%clk 0:02:45.4]} 14... Ne4 {[%clk 0:01:59.3]} 15. dxc5 {[%clk 0:02:07.9]}
15... Bxc5 {[%clk 0:01:56.4]} 16. Nd4 {[%clk 0:02:08]} 16... Bd7 {[%clk
0:01:01.4]} 17. Nxd5 {[%clk 0:01:47.4]} 17... Qg5 {[%clk 0:00:39.3]} 18. Nf4
{[%clk 0:01:43.7]} 18... Bb4 {[%clk 0:00:39.2]} 19. Nf3 {[%clk 0:01:36.6]} 19...
Qe7 {[%clk 0:00:21.9]} 20. Qd4 {[%clk 0:01:32.4]} 20... f6 {[%clk 0:00:22.1]}
21. Nd5 {[%clk 0:01:28.1]} 21... Rxc1 {[%clk 0:00:18.2]} 22. Rxc1 {[%clk
0:01:26.7]} 1-0

[Event "Late-Titled-Tuesday-Blitz-April-16-2024"]
[Site "Chess.com"]
[Date "2024.04.16"]
[Round "4"]
[White "ChessSwole"]
[Black "Denisenko_Denis"]
[Result "1-0"]
[WhiteElo "2673"]
[BlackElo "2415"]
[TimeControl "180+1"]
[EndTime "14:35:39 PDT"]
[Termination "ChessSwole won by resignation"]

1. d4 {[%clk 0:03:00.9]} 1... d5 {[%clk 0:02:52.2]} 2. Nf3 {[%clk 0:03:00]} 2...
Nf6 {[%clk 0:02:51.9]} 3. Bf4 {[%clk 0:02:59.7]} 3... e6 {[%clk 0:02:49.6]} 4.
e3 {[%clk 0:02:57.5]} 4... Bd6 {[%clk 0:02:49.2]} 5. Ne5 {[%clk 0:02:56.7]} 5...
c5 {[%clk 0:02:42]} 6. Nd2 {[%clk 0:02:56.1]} 6... Nc6 {[%clk 0:02:41.1]} 7. Bb5
{[%clk 0:02:50.6]} 7... Qc7 {[%clk 0:02:34.6]} 8. c4 {[%clk 0:02:43.4]} 8... O-O
{[%clk 0:02:29.3]} 9. Bxc6 {[%clk 0:02:43.1]} 9... bxc6 {[%clk 0:02:28]} 10. O-O
{[%clk 0:02:33.2]} 10... cxd4 {[%clk 0:02:27.8]} 11. exd4 {[%clk 0:02:34.1]}
11... Rb8 {[%clk 0:02:16.9]} 12. c5 {[%clk 0:02:27.9]} 12... Bxe5 {[%clk
0:02:02]} 13. Bxe5 {[%clk 0:02:28.8]} 13... Qb7 {[%clk 0:02:02.1]} 14. Bxb8
{[%clk 0:02:28.4]} 14... Qxb8 {[%clk 0:02:03]} 15. b3 {[%clk 0:02:25.8]} 15...
e5 {[%clk 0:02:01.8]} 16. dxe5 {[%clk 0:02:24.8]} 16... Qxe5 {[%clk 0:02:01.5]}
17. h3 {[%clk 0:02:23.6]} 17... Bf5 {[%clk 0:01:54.5]} 18. Nf3 {[%clk
0:02:22.1]} 18... Qf4 {[%clk 0:01:54.3]} 19. Qd4 {[%clk 0:02:21]} 19... Qxd4
{[%clk 0:01:47.8]} 20. Nxd4 {[%clk 0:02:21.1]} 20... Bd7 {[%clk 0:01:48.7]} 21.
f3 {[%clk 0:02:17.5]} 21... Nh5 {[%clk 0:01:47.7]} 22. Rfe1 {[%clk 0:02:15.4]}
22... Nf4 {[%clk 0:01:41.2]} 23. Re7 {[%clk 0:02:14.9]} 23... Rd8 {[%clk
0:01:40.7]} 24. Rae1 {[%clk 0:02:10.6]} 24... Kf8 {[%clk 0:01:40.4]} 25. R7e3
{[%clk 0:01:54]} 25... h5 {[%clk 0:01:37.7]} 26. h4 {[%clk 0:01:52.5]} 26... g6
{[%clk 0:01:35]} 27. g3 {[%clk 0:01:47.7]} 27... Ne6 {[%clk 0:01:33.1]} 28. Rxe6
{[%clk 0:01:32.9]} 28... Bxe6 {[%clk 0:01:34]} 29. Rxe6 {[%clk 0:01:32.7]} 29...
fxe6 {[%clk 0:01:32]} 30. Nxe6+ {[%clk 0:01:33.1]} 30... Ke7 {[%clk 0:01:32.4]}
31. Nxd8 {[%clk 0:01:33.1]} 31... Kxd8 {[%clk 0:01:32.6]} 32. Kf2 {[%clk
0:01:31.4]} 32... Ke7 {[%clk 0:01:32.2]} 33. Ke3 {[%clk 0:01:31.8]} 33... Ke6
{[%clk 0:01:32]} 34. Kd4 {[%clk 0:01:23.9]} 34... Kf5 {[%clk 0:01:29.5]} 35. b4
{[%clk 0:01:23.8]} 35... a6 {[%clk 0:01:27.7]} 36. a4 {[%clk 0:01:23.7]} 36...
Ke6 {[%clk 0:01:27]} 37. g4 {[%clk 0:01:23.5]} 37... Kf6 {[%clk 0:01:18.1]} 38.
b5 {[%clk 0:01:16.4]} 38... cxb5 {[%clk 0:01:10]} 39. axb5 {[%clk 0:01:17.3]}
39... axb5 {[%clk 0:01:09.3]} 40. Kxd5 {[%clk 0:01:17]} 40... g5 {[%clk
0:01:08.6]} 41. hxg5+ {[%clk 0:01:15.7]} 41... Kxg5 {[%clk 0:01:08.5]} 42. gxh5
{[%clk 0:01:15.1]} 1-0

[Event "Late-Titled-Tuesday-Blitz-April-16-2024"]
[Site "Chess.com"]
[Date "2024.04.16"]
[Round "4"]
[White "giomar27"]
[Black "trriinu"]
[Result "1-0"]
[WhiteElo "2483"]
[BlackElo "2261"]
[TimeControl "180+1"]
[EndTime "14:35:41 PDT"]
[Termination "giomar27 won on time"]

1. f3 {[%clk 0:03:00.9]} 1... d5 {[%clk 0:02:40.5]} 2. g3 {[%clk 0:03:01.2]}
2... e5 {[%clk 0:02:39.9]} 3. Nh3 {[%clk 0:03:01.5]} 3... c5 {[%clk 0:02:39.7]}
4. Nf2 {[%clk 0:03:02]} 4... Nc6 {[%clk 0:02:40.1]} 5. Bg2 {[%clk 0:03:02.6]}
5... f5 {[%clk 0:02:40.3]} 6. O-O {[%clk 0:03:03.1]} 6... Nf6 {[%clk 0:02:41]}
7. d3 {[%clk 0:03:03.6]} 7... Be7 {[%clk 0:02:40.3]} 8. Nc3 {[%clk 0:03:03.7]}
8... O-O {[%clk 0:02:39.8]} 9. e4 {[%clk 0:03:03.9]} 9... d4 {[%clk 0:02:24.4]}
10. Ne2 {[%clk 0:03:04]} 10... g6 {[%clk 0:02:25]} 11. f4 {[%clk 0:03:04.5]}
11... Bd6 {[%clk 0:02:20]} 12. a4 {[%clk 0:03:00.5]} 12... Be6 {[%clk
0:02:05.3]} 13. fxe5 {[%clk 0:02:59.5]} 13... Bxe5 {[%clk 0:01:59.3]} 14. Nf4
{[%clk 0:02:58.8]} 14... Bf7 {[%clk 0:01:38.4]} 15. exf5 {[%clk 0:02:58.6]}
15... gxf5 {[%clk 0:01:39.3]} 16. Bd2 {[%clk 0:02:56.7]} 16... Ne7 {[%clk
0:01:10.6]} 17. N2h3 {[%clk 0:02:55.7]} 17... Ng4 {[%clk 0:01:04.5]} 18. Ng5
{[%clk 0:02:50.9]} 18... Bxf4 {[%clk 0:00:38.9]} 19. Bxf4 {[%clk 0:02:49.8]}
19... Nd5 {[%clk 0:00:39]} 20. Nxf7 {[%clk 0:02:40.6]} 20... Rxf7 {[%clk
0:00:38.1]} 21. Bxd5 {[%clk 0:02:36.9]} 21... Qxd5 {[%clk 0:00:38.3]} 22. Qf3
{[%clk 0:02:36.8]} 22... Qxf3 {[%clk 0:00:30]} 23. Rxf3 {[%clk 0:02:37.7]} 23...
Re8 {[%clk 0:00:30.1]} 24. h3 {[%clk 0:02:37.9]} 24... Nf6 {[%clk 0:00:16.3]}
25. Bd6 {[%clk 0:02:32]} 25... Re2 {[%clk 0:00:07.2]} 26. Rf2 {[%clk 0:02:28.8]}
26... Rxf2 {[%clk 0:00:06.3]} 27. Kxf2 {[%clk 0:02:29.7]} 27... b6 {[%clk
0:00:06.7]} 28. Re1 {[%clk 0:02:28.2]} 28... Nd5 {[%clk 0:00:06.9]} 29. Re8+
{[%clk 0:02:23.6]} 29... Kg7 {[%clk 0:00:05.3]} 30. Be5+ {[%clk 0:02:24.3]}
30... Kh6 {[%clk 0:00:03.9]} 31. Rg8 {[%clk 0:02:23]} 31... a6 {[%clk
0:00:01.7]} 32. Kf3 {[%clk 0:02:21.4]} 32... Nb4 {[%clk 0:00:01.9]} 33. g4
{[%clk 0:02:15.4]} 33... fxg4+ {[%clk 0:00:01.7]} 34. Kxg4 {[%clk 0:02:16.3]}
34... Nxc2 {[%clk 0:00:01.8]} 35. Bf4+ {[%clk 0:02:16]} 35... Rxf4+ {[%clk
0:00:01.5]} 36. Kxf4 {[%clk 0:02:16.9]} 36... Ne3 {[%clk 0:00:01.5]} 37. Ra8
{[%clk 0:02:14.5]} 37... Kh5 {[%clk 0:00:01.8]} 38. Rxa6 {[%clk 0:02:14]} 38...
Nd5+ {[%clk 0:00:01.2]} 39. Ke4 {[%clk 0:02:11.4]} 1-0